lending/lending_fUSD_20240731
["ID","MTS","AMOUNT","RATE_DAILY","PERIOD"]
[333716735,1722403838473,-1000.0,0.00010959,2]
[333716736,1722403838483,-1000.0,0.00010959,2]
[333716737,1722403838492,-1000.0,0.00010959,2]
[333716738,1722403838501,-1000.0,0.00010959,2]
[333716739,1722403838512,-1000.0,0.00010959,2]
[333716740,1722403838521,-1000.0,0.00010959,2]
[333716741,1722403838530,-1000.0,0.00010959,2]
[333716742,1722403838539,-1000.0,0.00010959,2]
[333716743,1722403838548,-1000.0,0.00010959,2]
[333716744,1722403838557,-1000.0,0.00010959,2]
[333716745,1722403838566,-1000.0,0.00010959,2]
[333716746,1722403838575,-1000.0,0.00010959,2]
[333716747,1722403838584,-1000.0,0.00010959,2]
[333716748,1722403838594,-1000.0,0.00010959,2]
[333716749,1722403838603,-1000.0,0.00010959,2]
[333716750,1722403838612,-1000.0,0.00010959,2]
[333716751,1722403838621,-1000.0,0.00010959,2]
[333716752,1722403838630,-1000.0,0.00010959,2]
[333716753,1722403838639,-1000.0,0.00010959,2]
[333716754,1722403838649,-1000.0,0.00010959,2]
[333716755,1722403838658,-1000.0,0.00010959,2]
[333716756,1722403838667,-1000.0,0.00010959,2]
[333716757,1722403838676,-1000.0,0.00010959,2]
[333716758,1722403838685,-1000.0,0.00010959,2]
[333716759,1722403838694,-1000.0,0.00010959,2]
[333716760,1722403838703,-1000.0,0.00010959,2]
[333716761,1722403838713,-1000.0,0.00010959,2]
[333716762,1722403838722,-1000.0,0.00010959,2]
[333716763,1722403838731,-1000.0,0.00010959,2]
[333716764,1722403838740,-1000.0,0.00010959,2]
[333716765,1722403838749,-1000.0,0.00010959,2]
[333716766,1722403838759,-1000.0,0.00010959,2]
[333716767,1722403838768,-1000.0,0.00010959,2]
[333716768,1722403838777,-1000.0,0.00010959,2]
[333716769,1722403838786,-1000.0,0.00010959,2]
[333716770,1722403838795,-1000.0,0.00010959,2]
[333716771,1722403838804,-1000.0,0.00010959,2]
[333716772,1722403838815,-1000.0,0.00010959,2]
[333716773,1722403838826,-1000.0,0.00010959,2]
[333716774,1722403838836,-1000.0,0.00010959,2]
[333716775,1722403838848,-1000.0,0.00010959,2]
[333716776,1722403838857,-1000.0,0.00010959,2]
[333716777,1722403838867,-1000.0,0.00010959,2]
[333716778,1722403838876,-1000.0,0.00010959,2]
[333716779,1722403838885,-1000.0,0.00010959,2]
[333716780,1722403838895,-1000.0,0.00010959,2]
[333716781,1722403838907,-1000.0,0.00010959,2]
[333716782,1722403838918,-1000.0,0.00010959,2]
[333716783,1722403838927,-1000.0,0.00010959,2]
[333716784,1722403838937,-1000.0,0.00010959,2]
[333716785,1722403838947,-1000.0,0.00010959,2]
[333716786,1722403838957,-1000.0,0.00010959,2]
[333716787,1722403838966,-1000.0,0.00010959,2]
[333716788,1722403838975,-1000.0,0.00010959,2]
[333716789,1722403838984,-1000.0,0.00010959,2]
[333716790,1722403838993,-1000.0,0.00010959,2]
[333716791,1722403839002,-1000.0,0.00010959,2]
[333716792,1722403839011,-1000.0,0.00010959,2]
[333716793,1722403839022,-1000.0,0.00010959,2]
[333716794,1722403839031,-1000.0,0.00010959,2]
[333716795,1722403839041,-1000.0,0.00010959,2]
[333716796,1722403839052,-1000.0,0.00010959,2]
[333716797,1722403839061,-1000.0,0.00010959,2]
[333716798,1722403839070,-1000.0,0.00010959,2]
[333716799,1722403839079,-1000.0,0.00010959,2]
[333716800,1722403839089,-1000.0,0.00010959,2]
[333716801,1722403839098,-1000.0,0.00010959,2]
[333716802,1722403839108,-1000.0,0.00010959,2]
[333716803,1722403839117,-1000.0,0.00010959,2]
[333716804,1722403839127,-1000.0,0.00010959,2]
[333716805,1722403839136,-1000.0,0.00010959,2]
[333716806,1722403839147,-1000.0,0.00010959,2]
[333716807,1722403839156,-1000.0,0.00010959,2]
[333716808,1722403839409,-1000.0,0.00010959,2]
[333716809,1722403839423,-1000.0,0.00010959,2]
[333716810,1722403839432,-1000.0,0.00010959,2]
[333716811,1722403839441,-1000.0,0.00010959,2]
[333716812,1722403839450,-1000.0,0.00010959,2]
[333716813,1722403839459,-1000.0,0.00010959,2]
[333716814,1722403839469,-1000.0,0.00010959,2]
[333716815,1722403839478,-1000.0,0.00010959,2]
[333716816,1722403839488,-1000.0,0.00010959,2]
[333716817,1722403839497,-1000.0,0.00010959,2]
[333716818,1722403839509,-1000.0,0.00010959,2]
[333716819,1722403839519,-1000.0,0.00010959,2]
[333716820,1722403839528,-1000.0,0.00010959,2]
[333716821,1722403839537,-1000.0,0.00010959,2]
[333716822,1722403839546,-1000.0,0.00010959,2]
[333716823,1722403839556,-1000.0,0.00010959,2]
[333716824,1722403839566,-1000.0,0.00010959,2]
[333716825,1722403839576,-1000.0,0.00010959,2]
[333716826,1722403839585,-1000.0,0.00010959,2]
[333716827,1722403839595,-1000.0,0.00010959,2]
[333716828,1722403839605,-1000.0,0.00010959,2]
[333716829,1722403839614,-1000.0,0.00010959,2]
[333716830,1722403839624,-250.0,0.00010959,2]
[333716831,1722403839634,-13358.27850302,0.00010989,2]
[333716832,1722403839643,-490.74585057,0.00010997,2]
[333716833,1722403839653,-1857.7658012,0.00010998,2]
[333716834,1722403839663,-243.84160598,0.00010999,2]
[333716835,1722403839671,-1485.29821347,0.00010999,2]
[333716836,1722403839681,-69019.28502137,0.00011,2]
[333716837,1722403839691,-152963.70712989,0.00011,2]
[333716838,1722403839704,-2125.34602237,0.00011,2]
[333716839,1722403839715,-384.30158449,0.00011,2]
[333716841,1722403839726,-511.52180282,0.00011,2]
[333716843,1722403839736,-373.85459432,0.00011,2]
[333716844,1722403839747,-1424878.21048674,0.00011,2]
[333716845,1722403839758,-1839.93992941,0.00011,2]
[333716846,1722403839897,-959.199,0.00010862,2]
[333716847,1722403839909,-113.801,0.00010862,2]
[333716848,1722403839918,-4027.85374558,0.00011,2]
[333716849,1722403839929,-655.37201016,0.00011,2]
[333716850,1722403839940,-6719.10625203,0.00011,2]
[333716851,1722403839959,-57399.7265854,0.00011,2]
[333716852,1722403839971,-300366.82644742,0.00011,2]
[333716853,1722403840025,-2809.89847193,0.00011,2]
[333716854,1722403840036,-2170.26032644,0.00011,2]
[333716855,1722403840084,-688.15196471,0.00011,2]
[333716856,1722403840095,-1992.14879849,0.00011,2]
[333716857,1722403840107,-7376.95188826,0.00011,2]
[333716858,1722403840118,-857.69234347,0.00011,2]
[333716859,1722403840147,-396.05309653,0.00011,2]
[333716860,1722403840159,-3888.49741325,0.00011,2]
[333716861,1722403840210,-3779.77020261,0.00011,2]
[333716862,1722403840226,-573.37954002,0.00011,2]
[333716872,1722403843625,-742.64910674,0.00010999,2]
[333716873,1722403843635,-157.35089326,0.00011,2]
[333716874,1722403843646,-19403.40581442,0.00011,2]
[333716875,1722403843661,-2646.38179318,0.00011,2]
[333716876,1722403843673,-1066.32182804,0.00011,2]
[333716877,1722403843684,-480.62499748,0.00011,2]
[333716878,1722403843695,-680.84645496,0.00011,2]
[333716879,1722403843707,-115189.77047023,0.00011,2]
[333716880,1722403843718,-147155.62256877,0.00011,2]
[333716881,1722403843729,-22359.08022655,0.00011,2]
[333716882,1722403843740,-2734.9,0.00011,2]
[333716883,1722403843751,-3827.0,0.00011,2]
[333716885,1722403845904,-530.1,0.00010192,2]
[333716886,1722403845916,-155.577,0.00010862,2]
[333716887,1722403845925,-406.90459737,0.00011,2]
[333716888,1722403845936,-747.54487454,0.00011,2]
[333716889,1722403845948,-1562.83892545,0.00011,2]
[333716890,1722403846029,-1082.16293103,0.00011,2]
[333716891,1722403846040,-427.55124878,0.00011,2]
[333716892,1722403846051,-313.99159286,0.00011,2]
[333716893,1722403846094,-6134.45000001,0.00011,2]
[333716894,1722403846164,-256.258061,0.00011,2]
[333716897,1722403873312,150.5,0.0001789,120]
[333716898,1722403873769,150.5,0.0001788,120]
[333716899,1722403874261,150.5,0.0001787,120]
[333716900,1722403874735,150.5,0.0001789,120]
[333716901,1722403875223,150.5,0.0001788,120]
[333716902,1722403875672,150.5,0.0001787,120]
[333716903,1722403877072,285.0,0.0001789,120]
[333716905,1722403958701,673.0,0.00027,120]
[333716906,1722403992899,289.0,0.0001789,120]
[333716907,1722403993368,289.0,0.0001788,120]
[333716908,1722403993836,289.0,0.0001787,120]
[333716909,1722403994506,289.0,0.0001789,120]
[333716910,1722403994968,289.0,0.0001788,120]
[333716911,1722403995837,289.0,0.0001787,120]
[333716912,1722403995939,289.0,0.0001789,120]
[333716913,1722403996533,289.0,0.0001788,120]
[333716914,1722403997005,289.0,0.0001789,120]
[333716915,1722403997478,297.0,0.0001788,120]
[333716918,1722404055402,485.47,0.0001337,30]
[333716921,1722404211729,273.28,8.219e-05,2]
[333716922,1722404254867,10000.0,0.00027,120]
[333716923,1722404267183,10000.0,0.00027,120]
[333716924,1722404278647,10000.0,0.00027,120]
[333716925,1722404289826,10000.0,0.00027,120]
[333716926,1722404336856,10000.0,0.00027,120]
[333716927,1722404548659,206.46794754,0.00027,120]
[333716929,1722404636392,445.01,0.0001337,30]
[333716930,1722404660758,10000.0,0.00027,120]
[333716931,1722404663768,259.61,8.219e-05,2]
[333716955,1722404844118,-1000.0,9.792e-05,2]
[333716956,1722404844144,-500.0,9.9e-05,3]
[333716957,1722404844166,-300.0,9.984e-05,2]
[333716958,1722404844188,-9274.71,9.985e-05,2]
[333716959,1722404844209,-342.20015511,0.0001,2]
[333716960,1722404844230,-1250.0,0.0001,2]
[333716961,1722404844255,-1000.0,0.0001,3]
[333716962,1722404844278,-1500.0,0.000101,3]
[333716963,1722404844300,-2000.0,0.000102,3]
[333716964,1722404844321,-2500.0,0.000103,3]
[333716965,1722404844342,-499.99,0.000104,2]
[333716966,1722404844363,-150.99,0.000104,2]
[333716967,1722404844384,-259.61,0.0001047,2]
[333716968,1722404844405,-2469.5005,0.00010699,2]
[333716969,1722404844426,-484.32,0.000107,2]
[333716970,1722404844447,-339.81,0.000107,2]
[333716971,1722404844467,-436.7,0.000107,2]
[333716972,1722404844490,-669.41,0.00010778,2]
[333716973,1722404844512,-5826.0,0.00010862,2]
[333716974,1722404844533,-34404.04,0.00010862,2]
[333716975,1722404844555,-552.508,0.00010862,2]
[333716976,1722404844576,-3000.0,0.0001089,2]
[333716977,1722404844596,-3000.0,0.0001089,2]
[333716978,1722404844618,-2500.0,0.000109,2]
[333716979,1722404844643,-88881.0625,0.000109,2]
[333716980,1722404844664,-573232.0,0.000109,2]
[333716981,1722404844686,-3000.0,0.000109,2]
[333716982,1722404844708,-170.23708636,0.000109,2]
[333716983,1722404844731,-1121.5825655,0.000109,2]
[333716984,1722404844760,-500.0,0.00010911,2]
[333716985,1722404844781,-500.0,0.00010912,2]
[333716986,1722404844802,-3000.0,0.0001094,2]
[333716987,1722404844824,-250.0,0.00010959,2]
[333716988,1722404844845,-3000.0,0.0001098,2]
[333716989,1722404844866,-420.0,0.00010983,2]
[333716990,1722404844890,-152.46,0.0001099,2]
[333716991,1722404844916,-152.46,0.0001099,2]
[333716992,1722404844940,-152.46,0.0001099,2]
[333716993,1722404844965,-152.46,0.0001099,2]
[333716994,1722404844987,-152.46,0.0001099,2]
[333716995,1722404845010,-152.46,0.0001099,2]
[333716996,1722404845032,-152.46,0.0001099,2]
[333716997,1722404845053,-152.46,0.0001099,2]
[333716998,1722404845074,-152.46,0.0001099,2]
[333716999,1722404845095,-152.46,0.0001099,2]
[333717000,1722404845118,-5591.77568,0.00010995,2]
[333717001,1722404845140,-2183.2692258,0.00010995,2]
[333717002,1722404845162,-16775.3270397,0.00010995,2]
[333717003,1722404845183,-181.6175622,0.00010998,2]
[333717004,1722404845203,-371.32455337,0.00010999,2]
[333717005,1722404845223,-1596.48259612,0.00010999,3]
[333717006,1722404845246,-581.36238691,0.00010999,2]
[333717007,1722404845271,-51764.46376603,0.00011,2]
[333717008,1722404845295,-4920806.87494451,0.00011,2]
[333717009,1722404845317,-2012129.46639739,0.00011,2]
[333717010,1722404845339,-1035083.75523371,0.00011,2]
[333717011,1722404845363,-6895740.3512773,0.00011,2]
[333717012,1722404845386,-7541334.65852999,0.00011,2]
[333717077,1722405033843,-250.0,0.00010279,2]
[333717078,1722405033854,-51.02081451,0.000104,3]
[333717079,1722405033866,-448.97918549,0.000104,3]
[333717080,1722405033877,-500.0,0.000105,3]
[333717081,1722405033887,-500.0,0.000106,3]
[333717082,1722405033897,-500.0,0.000107,3]
[333717083,1722405033906,-700.0,0.000108,3]
[333717084,1722405033916,-500.1748,0.000108,2]
[333717085,1722405033926,-5981.1014,0.000108,2]
[333717086,1722405033935,-1074.39981973,0.000108,2]
[333717087,1722405033956,-1425.60018027,0.000108,2]
[333717088,1722405033966,-2675.908,0.00010862,2]
[333717089,1722405033976,-190.924,0.00010862,2]
[333717090,1722405033985,-1412.32316243,0.000109,2]
[333717091,1722405033995,-312.77,0.00010959,2]
[333717092,1722405034004,-260.65,0.00010959,2]
[333717093,1722405034014,-217.2,0.00010959,2]
[333717094,1722405034023,-181.0,0.00010959,2]
[333717095,1722405034032,-150.84,0.00010959,2]
[333717096,1722405034042,-423.01180093,0.00010959,2]
[333717098,1722405038602,-331.19819907,0.00010959,2]
[333717099,1722405038612,-1359.2850645,0.00010959,2]
[333717100,1722405038703,-681.7149355,0.00010959,2]
[333717101,1722405038712,-499.99,0.00010966,2]
[333717102,1722405038722,-1026.52564037,0.00010967,2]
[333717103,1722405038734,-956.75761694,0.00010967,2]
[333717104,1722405038745,-1067.19602746,0.00010967,2]
[333717105,1722405038776,-9902.55119582,0.00010967,2]
[333717106,1722405038788,-33443.71020767,0.00010967,2]
[333717107,1722405038801,-1476.14963941,0.0001098,2]
[333717108,1722405038810,-151.49,0.0001099,2]
[333717109,1722405038820,-151.3479685,0.00010995,2]
[333717110,1722405038829,-857.1048646,0.00010995,2]
[333717111,1722405038840,-211.40172643,0.00010999,2]
[333717112,1722405038850,-673.30660386,0.00010999,2]
[333717113,1722405038859,-150.0,0.00010999,2]
[333717114,1722405038869,-500.0,0.00010999,2]
[333717115,1722405038881,-288.19056292,0.00010999,2]
[333717116,1722405038890,-22150.23735274,0.00011,2]
[333717117,1722405038902,-857.52133597,0.00011,2]
[333717118,1722405039000,-29830.7986851,0.00011,2]
[333717138,1722405040307,-3054.19398321,0.00011,2]
[333717139,1722405040320,-329.745,0.00011,2]
[333717140,1722405040331,-66004.8722371,0.00011,2]
[333717141,1722405040343,-328.57,0.00011,2]
[333717142,1722405040365,-2947.85393998,0.00011,2]
[333717143,1722405040376,-6032.55630432,0.00011,2]
[333717144,1722405040470,-39282.21591552,0.00011,2]
[333717145,1722405040500,-379.9422459,0.00011,2]
[333717146,1722405040608,-687.79291592,0.00011,2]
[333717147,1722405040619,-676.23,0.00011,2]
[333717152,1722405043110,-228.706,0.00010862,2]
[333717153,1722405043119,-336.65330193,0.00010999,2]
[333717154,1722405043128,-27343.15030854,0.00011,2]
[333717155,1722405043211,-44781.60921649,0.00011,2]
[333717156,1722405043310,-673.14206966,0.00011,2]
[333717157,1722405043415,-3680.30187106,0.00011,2]
[333717158,1722405043426,-115189.77047023,0.00011,2]
[333717159,1722405043517,-3898.14041674,0.00011,2]
[333717477,1722405046913,-252.52454862,0.00010342,2]
[333717479,1722405046923,-336.65330192,0.00010999,2]
[333717481,1722405046933,-222.74384356,0.00011,2]
[333717484,1722405046953,-598.38738947,0.00011,2]
[333718474,1722405080195,3916.15210831,0.00027,120]
[333718477,1722405131816,320.36,8.735e-05,2]
[333718479,1722405158290,485.21486413,8.735e-05,2]
[333718480,1722405173759,407.92,0.0001337,30]
[333718481,1722405190407,500.0,0.00027,120]
[333718482,1722405192354,250.0,8.735e-05,2]
[333718483,1722405192782,1000.0,0.00027,120]
[333718484,1722405198803,-50000.0,0.00031728,30]
[333718485,1722405198833,-50000.0,0.00031728,31]
[333718486,1722405198862,-50000.0,0.00031728,32]
[333718487,1722405198893,-50000.0,0.00031728,33]
[333718488,1722405198917,-160.0,0.00031728,30]
[333718489,1722405198945,-50000.0,0.00031728,34]
[333718490,1722405198969,-4363.68400247,0.00031728,120]
[333718491,1722405198993,-3352.57518806,0.00031728,120]
[333718492,1722405199019,-2582.22924667,0.00031728,30]
[333718493,1722405199045,-3889.53133792,0.00031728,120]
[333718494,1722405199070,-756.0,0.00031728,120]
[333718495,1722405199095,-845.70283692,0.00031728,120]
[333718496,1722405199119,-718.75356316,0.00031728,120]
[333718497,1722405199145,-4701.11861854,0.00031728,60]
[333718498,1722405199170,-1838.0,0.00031728,120]
[333718499,1722405199196,-2119.99999851,0.00031728,36]
[333718500,1722405199221,-1238.0,0.00031728,30]
[333718501,1722405199246,-259.1453,0.00031728,30]
[333718502,1722405199274,-150.0,0.00031728,30]
[333718503,1722405199298,-158.78864493,0.00031728,50]
[333718504,1722405199322,-2999.999996,0.00031728,120]
[333718505,1722405199347,-511.34662546,0.00031728,30]
[333718506,1722405199372,-745.75967913,0.00031728,30]
[333718507,1722405199397,-12174.0964126,0.00031728,120]
[333718508,1722405199421,-744.67294277,0.00031728,120]
[333718509,1722405199446,-5000.0,0.00031728,33]
[333718510,1722405199472,-1355.0,0.00031728,120]
[333718511,1722405199497,-101517.95183917,0.00031728,60]
[333718512,1722405199524,-3677.0,0.00031728,30]
[333718513,1722405210233,-399.0,0.0001778,30]
[333718514,1722405210258,-399.0,0.0001778,30]
[333718515,1722405210287,-399.0,0.0001779,30]
[333718516,1722405210311,-399.0,0.0001779,30]
[333718517,1722405210334,-399.0,0.0001779,30]
[333718518,1722405210357,-405.98,0.0001779,30]
[333718519,1722405210381,-399.0,0.000178,30]
[333718520,1722405210405,-399.0,0.000178,30]
[333718521,1722405210428,-399.0,0.000178,30]
[333718522,1722405210452,-399.0,0.000178,30]
[333718523,1722405210479,-407.92,0.00018351,30]
[333718524,1722405210505,-779.23217045,0.00019178,30]
[333718525,1722405210530,-166.97832225,0.00019178,30]
[333718526,1722405210555,-779.23217045,0.0001926,30]
[333718527,1722405210578,-779.23217045,0.00019342,30]
[333718528,1722405210601,-779.23217045,0.00019425,30]
[333718529,1722405210624,-166.97832225,0.00019452,30]
[333718530,1722405210648,-779.23217045,0.00019507,30]
[333718531,1722405210672,-779.23217045,0.00019589,30]
[333718532,1722405210696,-779.23217045,0.00019671,30]
[333718533,1722405210720,-779.23217045,0.00019753,30]
[333718534,1722405210744,-166.97832225,0.00019753,30]
[333718535,1722405210768,-779.23217045,0.00019836,30]
[333718536,1722405210794,-779.23217045,0.00019918,30]
[333718537,1722405210821,-779.23217045,0.0002,30]
[333718538,1722405210846,-166.97832225,0.00020027,30]
[333718539,1722405210869,-779.23217045,0.00020082,30]
[333718540,1722405210894,-779.23217045,0.00020137,30]
[333718541,1722405210917,-779.23217045,0.00020219,30]
[333718542,1722405210942,-779.23217045,0.00020301,30]
[333718543,1722405210966,-166.97832225,0.00020301,30]
[333718544,1722405211000,-441.48315985,0.000219,30]
[333718545,1722405211029,-500.0,0.00021918,30]
[333718546,1722405211052,-417.90817473,0.00021918,30]
[333718547,1722405211077,-419.91462707,0.00022,30]
[333718548,1722405211107,-407.92,0.00023332,30]
[333718549,1722405211148,-250.0,0.00025,30]
[333718550,1722405211172,-259.73462604,0.00025,30]
[333718551,1722405211198,-1208.0,0.00025615,30]
[333718552,1722405211229,-664.70525645,0.00026901,30]
[333718553,1722405211253,-552.30015404,0.00027,50]
[333718554,1722405211279,-800.0,0.00027014,120]
[333718555,1722405211302,-800.0,0.00027014,120]
[333718556,1722405211575,-800.0,0.00027014,120]
[333718557,1722405211599,-800.0,0.00027014,120]
[333718558,1722405211624,-294.73931004,0.0002739,30]
[333718559,1722405211648,-200.0,0.00027397,60]
[333718560,1722405211672,-10000.0,0.00027397,60]
[333718561,1722405211695,-10000.0,0.00027397,60]
[333718562,1722405211719,-10000.0,0.00027397,60]
[333718563,1722405211742,-10000.0,0.00027397,120]
[333718564,1722405211766,-10000.0,0.00027397,120]
[333718565,1722405211793,-10000.0,0.00027397,120]
[333718566,1722405211818,-4000.0,0.00027397,30]
[333718567,1722405211846,-212.0,0.0002787,30]
[333718568,1722405211873,-1500.0,0.00028,120]
[333718569,1722405211901,-407.92,0.00028314,30]
[333718570,1722405211927,-1498.56565,0.00028631,30]
[333718571,1722405211955,-212.0,0.0002958,30]
[333718572,1722405211981,-1200.0,0.00029874,31]
[333718573,1722405212009,-50000.0,0.0003,30]
[333718574,1722405212037,-391.67636056,0.0003,30]
[333718575,1722405212061,-1393.60679461,0.0003,120]
[333718576,1722405212084,-151.0,0.0003,120]
[333718577,1722405212108,-3003.0,0.0003,30]
[333718578,1722405212132,-3000.0,0.0003,60]
[333718579,1722405212156,-1500.0,0.0003,120]
[333718580,1722405212180,-2000.0,0.0003,30]
[333718581,1722405212204,-1800.0,0.0003,31]
[333718582,1722405212228,-193.66666667,0.0003,120]
[333718583,1722405212254,-200.0,0.00030137,60]
[333718584,1722405212279,-5018.67196,0.00030221,30]
[333718585,1722405212304,-150.0,0.00030332,120]
[333718586,1722405212327,-217.0,0.0003037,30]
[333718587,1722405212351,-150.0,0.00030418,120]
[333718588,1722405212373,-588.0,0.00030466,120]
[333718589,1722405212397,-588.0,0.00030548,120]
[333718590,1722405212420,-588.0,0.00030575,120]
[333718591,1722405212444,-505.52,0.00030603,120]
[333718592,1722405212467,-548.0,0.00030613,30]
[333718593,1722405212490,-588.0,0.0003063,120]
[333718594,1722405212514,-250.0,0.000308,30]
[333718595,1722405212539,-193.66666667,0.00030849,120]
[333718596,1722405212566,-50000.0,0.00031,31]
[333718597,1722405212590,-3600.0,0.00031,32]
[333718598,1722405212613,-733.0,0.00031,30]
[333718599,1722405212635,-1161.0,0.00031,30]
[333718600,1722405212659,-400.59172813,0.0003121,120]
[333718601,1722405212684,-150.0,0.00031217,120]
[333718602,1722405212708,-150.0,0.00031226,120]
[333718603,1722405212732,-212.0,0.000313,30]
[333718604,1722405212755,-5832.90437213,0.00031323,30]
[333718605,1722405212780,-825.18833867,0.000314,30]
[333718606,1722405212803,-151.0,0.00031452,120]
[333718607,1722405212826,-217.0,0.0003146,30]
[333718608,1722405212850,-1200.0,0.00031567,31]
[333718609,1722405212874,-1811.3,0.000316,90]
[333718610,1722405212900,-600.0,0.000316,120]
[333718611,1722405212923,-172.63,0.00031644,91]
[333718612,1722405212948,-193.66666667,0.00031699,120]
[333718613,1722405212988,-50000.0,0.00032,32]
[333718614,1722405213015,-1146.02457934,0.00032,120]
[333718615,1722405213039,-200.0,0.00032,30]
[333718616,1722405213063,-3600.0,0.00032,33]
[333718617,1722405213088,-2000.0,0.00032,120]
[333718618,1722405213111,-2000.0,0.00032,30]
[333718619,1722405213134,-2000.0,0.00032,30]
[333718620,1722405213157,-2000.0,0.00032,30]
[333718621,1722405213180,-1314.878498,0.00032,60]
[333718622,1722405213209,-155.42,0.000324,31]
[333718623,1722405213235,-155.42,0.000324,31]
[333718624,1722405213262,-155.42,0.000324,31]
[333718625,1722405213290,-155.42,0.000324,31]
[333718626,1722405213318,-155.42,0.000324,31]
[333718627,1722405213345,-155.42,0.000324,31]
[333718628,1722405213372,-155.42,0.000324,31]
[333718629,1722405213396,-193.66666667,0.00032548,120]
[333718630,1722405213421,-217.0,0.0003255,30]
[333718631,1722405213445,-2994.0,0.000327,35]
[333718632,1722405213474,-155.42,0.000327,31]
[333718633,1722405213501,-155.42,0.000327,31]
[333718634,1722405213530,-155.42,0.000327,31]
[333718635,1722405213557,-400.59172813,0.00032853,120]
[333718636,1722405213582,-1000.0,0.00032876,30]
[333718637,1722405213607,-1000.0,0.00032876,30]
[333718638,1722405213631,-1000.0,0.00032876,30]
[333718639,1722405213654,-1000.0,0.00032876,30]
[333718640,1722405213678,-1000.0,0.00032876,30]
[333718641,1722405213703,-1000.0,0.00032876,30]
[333718642,1722405213727,-1000.0,0.00032876,30]
[333718643,1722405213750,-1000.0,0.00032876,30]
[333718644,1722405213774,-1000.0,0.00032876,30]
[333718645,1722405214008,-1000.0,0.00032876,30]
[333718646,1722405214032,-1000.0,0.00032876,30]
[333718647,1722405214056,-1000.0,0.00032876,30]
[333718648,1722405214080,-1000.0,0.00032876,30]
[333718649,1722405214103,-1000.0,0.00032876,30]
[333718650,1722405214127,-1000.0,0.00032876,30]
[333718651,1722405214150,-791.34139191,0.00032876,30]
[333718652,1722405214174,-1000.0,0.00032876,30]
[333718653,1722405214199,-1000.0,0.00032876,30]
[333718654,1722405214223,-1000.0,0.00032876,30]
[333718655,1722405214248,-1000.0,0.00032876,30]
[333718656,1722405214272,-1000.0,0.00032876,30]
[333718657,1722405214298,-1000.0,0.00032876,30]
[333718658,1722405214322,-652.04583768,0.00032876,30]
[333718659,1722405214346,-2607.65,0.00032876,120]
[333718660,1722405214369,-2607.65,0.00032876,120]
[333718661,1722405214393,-2607.65,0.00032876,120]
[333718662,1722405214416,-2607.65,0.00032876,120]
[333718663,1722405214441,-2607.65,0.00032876,120]
[333718664,1722405214464,-2607.65,0.00032876,120]
[333718665,1722405214489,-2607.65,0.00032876,120]
[333718666,1722405214513,-2607.65,0.00032876,120]
[333718667,1722405214539,-2607.65,0.00032876,120]
[333718668,1722405214563,-2607.65,0.00032876,120]
[333718669,1722405214587,-2607.65,0.00032876,120]
[333718670,1722405214611,-2607.65,0.00032876,120]
[333718671,1722405214635,-2607.65,0.00032876,120]
[333718672,1722405214658,-2607.65,0.00032876,120]
[333718673,1722405214681,-2607.65,0.00032876,120]
[333718674,1722405214704,-2607.65,0.00032876,120]
[333718675,1722405214728,-2607.65,0.00032876,120]
[333718676,1722405214752,-2607.65,0.00032876,120]
[333718677,1722405214775,-2607.65,0.00032876,120]
[333718678,1722405214799,-2607.65,0.00032876,120]